Workbook

Sheet INVENTORY
A1: # | B1: MAKE | C1: MODEL | D1: PROC. | E1: SPEED | F1: MEM. | G1: OPTICAL | H1: WEBCAM | I1: BATT. | J1: LAPTOP SERIAL # | K1: SN INPUT | L1: HDD SERIAL # | M1: HDD SIZE | N1: FUNC. CODE | O1: COS. CODE | P1: PRE. SAN. | Q1: NON-DATA
A2: 1 | B2: DELL | C2: LATITUDE 5330 | D2: I7-1265U | E2: 4.80 | F2: 16G | G2: NO | H2: YES | I2: YES | J2: 16YRMX3 | K2: 16yrmx3 | L2: cs01N8303115Y242X | M2: 512G | N2: F3 | O2: C5 | P2: ENCD | Q2: ND
A3: =IF(B3="","",A2+1) -> 2 | B3: DELL | C3: LATITUDE 5330 | D3: I7-1265U | E3: 4.80 | F3: 16G | G3: NO | H3: YES | I3: YES | J3: 2CYRMX3 | K3: 2cyrmx3 | L3: 20208N457415 | M3: 512G | N3: F3 | O3: C5 | P3: ENCD | Q3: ND
A4: =IF(B4="","",A3+1) -> 3 | B4: DELL | C4: LATITUDE 5330 | D4: I7-1265U | E4: 4.80 | F4: 16G | G4: NO | H4: YES | I4: YES | J4: 33ZRMX3 | K4: 33zrmx3 | L4: sn9AN90181030B52F | M4: 512G | N4: F3 | O4: C5 | P4: ENCD | Q4: ND
A5: 4 | B5: DELL | C5: LATITUDE 5330 | D5: I7-1265U | E5: 4.80 | F5: 16G | G5: NO | H5: YES | I5: YES | J5: 37ZRMX3 | K5: 37zrmx3 | L5: an9CN49421090C84L | M5: 512G | N5: F3 | O5: C5 | P5: ENCD | Q5: ND
A6: 5 | B6: DELL | C6: LATITUDE 5330 | D6: I7-1265U | E6: 4.80 | F6: 16G | G6: NO | H6: YES | I6: YES | J6: 4F6JFS3 | K6: 4f6jfs3 | L6: cd03N7051111Y3Q5M | M6: 512G | N6: F3 | O6: C5 | P6: ENCD | Q6: ND
A7: 6 | B7: DELL | C7: LATITUDE 5330 | D7: I7-1265U | E7: 4.80 | F7: 16G | G7: NO | H7: YES | I7: YES | J7: 5NNRMX3 | K7: 5nnrmx3 | L7: sn9AN86841330B51Q | M7: 512G | N7: F3 | O7: C5 | P7: ENCD | Q7: ND
A8: 7 | B8: DELL | C8: LATITUDE 5330 | D8: I7-1265U | E8: 4.80 | F8: 16G | G8: NO | H8: YES | I8: YES | J8: 5T9JFS3 | K8: 5t9jfs3 | L8: 20168Z453921 | M8: 512G | N8: F3 | O8: C5 | P8: ENCD | Q8: ND
A9: 8 | B9: DELL | C9: LATITUDE 5330 | D9: I7-1265U | E9: 4.80 | F9: 16G | G9: NO | H9: YES | I9: YES | J9: 61PRMX3 | K9: 61prmx3 | L9: s509NF0N212815 | M9: 512G | N9: F3 | O9: C5 | P9: ENCD | Q9: ND
A10: 9 | B10: DELL | C10: LATITUDE 5330 | D10: I7-1265U | E10: 4.80 | F10: 16G | G10: NO | H10: YES | I10: YES | J10: 6GNSMX3 | K10: 6gnsmx3 | L10: sn9AN79241340B44F | M10: 512G | N10: F3 | O10: C5 | P10: ENCD | Q10: ND
A11: 10 | B11: DELL | C11: LATITUDE 5330 | D11: I7-1265U | E11: 4.80 | F11: 16G | G11: NO | H11: YES | I11: YES | J11: 6PPSMX3 | K11: 6ppsmx3 | L11: 991PC3GTPQFN | M11: 512G | N11: F3 | O11: C5 | P11: ENCD | Q11: ND
A12: 11 | B12: DELL | C12: LATITUDE 5330 | D12: I7-1265U | E12: 4.80 | F12: 16G | G12: NO | H12: YES | I12: YES | J12: 80LSMX3 | K12: 80lsmx3 | L12: cs06N169813906F0Q | M12: 512G | N12: F3 | O12: C5 | P12: ENCD | Q12: ND
A13: 12 | B13: DELL | C13: LATITUDE 5330 | D13: I7-1265U | E13: 4.80 | F13: 16G | G13: NO | H13: YES | I13: YES | J13: 83QSMX3 | K13: 83qsmx3 | L13: 1951AD444020 | M13: 512G | N13: F3 | O13: C5 | P13: ENCD | Q13: ND
A14: 13 | B14: DELL | C14: LATITUDE 5330 | D14: I7-1265U | E14: 4.80 | F14: 16G | G14: NO | H14: YES | I14: YES | J14: 8YMSMX3 | K14: 8ymsmx3 | L14: sn9AN74551100AU38 | M14: 512G | N14: F3 | O14: C5 | P14: ENCD | Q14: ND
A15: 14 | B15: DELL | C15: LATITUDE 5330 | D15: I7-1265U | E15: 4.80 | F15: 16G | G15: NO | H15: YES | I15: YES | J15: B3QSMX3 | K15: b3qsmx3 | L15: sn9AN90181030B52P | M15: 512G | N15: F3 | O15: C5 | P15: ENCD | Q15: ND
A16: 15 | B16: DELL | C16: LATITUDE 5330 | D16: I7-1265U | E16: 4.80 | F16: 16G | G16: NO | H16: YES | I16: YES | J16: B8ZRMX3 | K16: b8zrmx3 | L16: s509NF0N320194 | M16: 512G | N16: F3 | O16: C5 | P16: ENCD | Q16: ND
A17: 16 | B17: DELL | C17: LATITUDE 5330 | D17: I7-1265U | E17: 4.80 | F17: 16G | G17: NO | H17: YES | I17: YES | J17: C1PRMX3 | K17: c1prmx3 | L17: sn9AN74551100AU2V | M17: 512G | N17: F3 | O17: C5 | P17: ENCD | Q17: ND
A18: 17 | B18: DELL | C18: LATITUDE 5330 | D18: I7-1265U | E18: 4.80 | F18: 16G | G18: NO | H18: YES | I18: YES | J18: C1PSMX3 | K18: c1psmx3 | L18: 50BPC6TYQTML | M18: 512G | N18: F3 | O18: C5 | P18: ENCD | Q18: ND
A19: 18 | B19: DELL | C19: LATITUDE 5330 | D19: I7-1265U | E19: 4.80 | F19: 16G | G19: NO | H19: YES | I19: YES | J19: C6CJFS3 | K19: c6cjfs3 | L19: sn9AN82631270B124 | M19: 512G | N19: F3 | O19: C5 | P19: ENCD | Q19: ND
A20: 19 | B20: DELL | C20: LATITUDE 5330 | D20: I7-1265U | E20: 4.80 | F20: 16G | G20: NO | H20: YES | I20: YES | J20: CKYRMX3 | K20: ckyrmx3 | L20: pheh4032079X512F | M20: 512G | N20: F3 | O20: C5 | P20: ENCD | Q20: ND
A21: 20 | B21: DELL | C21: LATITUDE 5330 | D21: I7-1265U | E21: 4.80 | F21: 16G | G21: NO | H21: YES | I21: YES | J21: CMYRMX3 | K21: cmyrmx3 | L21: 50APC87QQTML | M21: 512G | N21: F3 | O21: C5 | P21: ENCD | Q21: ND
A22: 21 | B22: DELL | C22: LATITUDE 5330 | D22: I7-1265U | E22: 4.80 | F22: 16G | G22: NO | H22: YES | I22: YES | J22: CNPSMX3 | K22: cnpsmx3 | L22: ss9BN53251060BB0O | M22: 512G | N22: F3 | O22: C5 | P22: ENCD | Q22: ND
A23: 22 | B23: DELL | C23: LATITUDE 5330 | D23: I7-1265U | E23: 4.80 | F23: 16G | G23: NO | H23: YES | I23: YES | J23: DJ4CLS3 | K23: dj4cls3 | L23: sn9AN90181030B52Q | M23: 512G | N23: F3 | O23: C5 | P23: ENCD | Q23: ND
A24: 23 | B24: DELL | C24: LATITUDE 5330 | D24: I7-1265U | E24: 4.80 | F24: 16G | G24: NO | H24: YES | I24: YES | J24: F4MRMX3 | K24: f4mrmx3 | L24: sn9AN79241340B453 | M24: 512G | N24: F3 | O24: C5 | P24: ENCD | Q24: ND
A25: 24 | B25: DELL | C25: LATITUDE 5330 | D25: I7-1265U | E25: 4.80 | F25: 16G | G25: NO | H25: YES | I25: YES | J25: FSWGLS3 | K25: fswgls3 | L25: sn9AN86841330B511 | M25: 512G | N25: F3 | O25: C5 | P25: ENCD | Q25: ND
A26: 25 | B26: DELL | C26: LATITUDE 5330 | D26: I7-1265U | E26: 4.80 | F26: 16G | G26: NO | H26: YES | I26: YES | J26: GG9JFS3 | K26: GG9JFS3 | L26: sn9AN82631210B245 | M26: 512G | N26: F3 | O26: C5 | P26: ENCD | Q26: ND
A27: 26 | B27: DELL | C27: LATITUDE 5330 | D27: I7-1265U | E27: 4.80 | F27: 16G | G27: NO | H27: YES | I27: YES | J27: HS9JFS3 | K27: hs9jfs3 | L27: sn9AN82571020AU2X | M27: 512G | N27: F3 | O27: C5 | P27: ENCD | Q27: ND
A28: 27 | B28: DELL | C28: LATITUDE 5330 | D28: I7-1265U | E28: 4.80 | F28: 16G | G28: NO | H28: YES | I28: YES | J28: HYYRMX3 | K28: hyyrmx3 | L28: 10PPC9SAPTML | M28: 512G | N28: F3 | O28: C5 | P28: ENCD | Q28: ND
A29: 28 | B29: DELL | C29: LATITUDE 5330 | D29: I7-1265U | E29: 4.80 | F29: 16G | G29: NO | H29: YES | I29: YES | J29: J1NSMX3 | K29: j1nsmx3 | L29: sn9AN86841150B52S | M29: 512G | N29: F3 | O29: C5 | P29: ENCD | Q29: ND
A30: 29 | B30: DELL | C30: LATITUDE 5330 | D30: I7-1265U | E30: 4.80 | F30: 16G | G30: NO | H30: YES | I30: YES | J30: J91JFS3 | K30: j91jfs3 | L30: an9CN49421010C92W | M30: 512G | N30: F3 | O30: C5 | P30: ENCD | Q30: ND
A31: 30 | B31: DELL | C31: LATITUDE 5330 | D31: I7-1265U | E31: 4.80 | F31: 16G | G31: NO | H31: YES | I31: YES | J31: JSZCLS3 | K31: jszcls3 | L31: sn9AN79241260B441 | M31: 512G | N31: F3 | O31: C5 | P31: ENCD | Q31: ND
A32: 31 | B32: DELL | C32: LATITUDE 5330 | D32: I7-1265U | E32: 4.80 | F32: 16G | G32: NO | H32: YES | I32: YES | J32: JZNRMX3 | K32: jznrmx3 | L32: sn9AN82631130B449 | M32: 512G | N32: F3 | O32: C5 | P32: ENCD | Q32: ND
A33: 32 | B33: DELL | C33: LATITUDE 5430 | D33: I5-1235U | E33: 4.40 | F33: 16G | G33: NO | H33: YES | I33: YES | J33: 112MHW3 | K33: 112MHW3 | L33: ns03N4658102Y3H2N | M33: 512G | N33: F3 | O33: C5 | P33: ENCD | Q33: ND
A34: 33 | B34: DELL | C34: LATITUDE 5430 | D34: I5-1235U | E34: 4.40 | F34: 16G | G34: NO | H34: YES | I34: YES | J34: 1TGQQV3 | K34: 1TGQQV3 | L34: s509NF0N211663 | M34: 512G | N34: F3 | O34: C5 | P34: ENCD | Q34: ND
A35: 34 | B35: DELL | C35: LATITUDE 5430 | D35: I5-1235U | E35: 4.40 | F35: 16G | G35: NO | H35: YES | I35: YES | J35: 22YZRV3 | K35: 22YZRV3 | L35: 20208N445114 | M35: 512G | N35: F3 | O35: C5 | P35: ENCD | Q35: ND
A36: 35 | B36: DELL | C36: LATITUDE 5430 | D36: I5-1235U | E36: 4.40 | F36: 16G | G36: NO | H36: YES | I36: YES | J36: 36CRQV3 | K36: 36CRQV3 | L36: sn9AN86841150B51J | M36: 512G | N36: F3 | O36: C5 | P36: ENCD | Q36: ND
A37: 36 | B37: DELL | C37: LATITUDE 5430 | D37: I5-1235U | E37: 4.40 | F37: 16G | G37: NO | H37: YES | I37: YES | J37: 3Z7BHW3 | K37: 3Z7BHW3 | L37: sn9AN82631120B14N | M37: 512G | N37: F3 | O37: C5 | P37: ENCD | Q37: ND
A38: 37 | B38: DELL | C38: LATITUDE 5430 | D38: I5-1235U | E38: 4.40 | F38: 16G | G38: NO | H38: YES | I38: YES | J38: 5M4TTV3 | K38: 5M4TTV3 | L38: tw07YGY09DH0002J00XA | M38: 512G | N38: F3 | O38: C5 | P38: ENCD | Q38: ND
A39: 38 | B39: DELL | C39: LATITUDE 5430 | D39: I5-1235U | E39: 4.40 | F39: 16G | G39: NO | H39: YES | I39: YES | J39: 5Z2BHW3 | K39: 5Z2BHW3 | L39: sn9AN82571020AU0O | M39: 512G | N39: F3 | O39: C5 | P39: ENCD | Q39: ND
A40: 39 | B40: DELL | C40: LATITUDE 5430 | D40: I5-1235U | E40: 4.40 | F40: 16G | G40: NO | H40: YES | I40: YES | J40: 6C1TTV3 | K40: 6C1TTV3 | L40: s509NF0N212001 | M40: 512G | N40: F3 | O40: C5 | P40: ENCD | Q40: ND
A41: 40 | B41: DELL | C41: LATITUDE 5430 | D41: I5-1235U | E41: 4.40 | F41: 16G | G41: NO | H41: YES | I41: YES | J41: 6V4WRV3 | K41: 6V4WRV3 | L41: sn9AN74551100AU5E | M41: 512G | N41: F3 | O41: C5 | P41: ENCD | Q41: ND
A42: 41 | B42: DELL | C42: LATITUDE 5430 | D42: I5-1235U | E42: 4.40 | F42: 16G | G42: NO | H42: YES | I42: YES | J42: 7Y0PQV3 | K42: 7Y0PQV3 | L42: sn9AN86841150B51O | M42: 512G | N42: F3 | O42: C5 | P42: ENCD | Q42: ND
A43: 42 | B43: DELL | C43: LATITUDE 5430 | D43: I5-1235U | E43: 4.40 | F43: 16G | G43: NO | H43: YES | I43: YES | J43: BYBKHW3 | K43: bybkhw3 | L43: 201691440403 | M43: 512G | N43: F3 | O43: C5 | P43: ENCD | Q43: ND
A44: 43 | B44: DELL | C44: LATITUDE 5430 | D44: I5-1235U | E44: 4.40 | F44: 16G | G44: NO | H44: YES | I44: YES | J44: G1YZRV3 | K44: g1YZRV3 | L44: nn05N708911505H3R | M44: 512G | N44: F3 | O44: C5 | P44: ENCD | Q44: ND
A45: 44 | B45: DELL | C45: LATITUDE 5430 | D45: I5-1235U | E45: 4.40 | F45: 16G | G45: NO | H45: YES | I45: YES | J45: G8N0SV3 | K45: g8N0SV3 | L45: 2020A7809145 | M45: 512G | N45: F3 | O45: C5 | P45: ENCD | Q45: ND
A46: 45 | B46: HP | C46: ELITEBOOK 630 G9 | D46: I5-1245U | E46: 3.90 | F46: 16G | G46: NO | H46: YES | I46: YES | J46: 2TK3420LCK | K46: 2TK3420LCK | L46: s509NF0N320162 | M46: 512G | N46: F3 | O46: C5 | P46: ENCD | Q46: ND
A47: 46 | B47: HP | C47: ELITEBOOK 630 G9 | D47: I5-1245U | E47: 3.90 | F47: 16G | G47: NO | H47: YES | I47: YES | J47: 2TK3330208 | K47: 2TK3330208 | L47: sn9AN86841150B50W | M47: 512G | N47: F3 | O47: C5 | P47: ENCD | Q47: ND
A48: 47 | B48: HP | C48: ELITEBOOK 630 G9 | D48: I5-1245U | E48: 3.90 | F48: 16G | G48: NO | H48: YES | I48: YES | J48: 2TK333024T | K48: 2TK333024T | L48: sn9AN79241360AU14 | M48: 512G | N48: F3 | O48: C5 | P48: ENCD | Q48: ND
A49: 48 | B49: HP | C49: ELITEBOOK 630 G9 | D49: I5-1245U | E49: 3.90 | F49: 16G | G49: NO | H49: YES | I49: YES | J49: 2TK333027J | K49: 2TK333027J | L49: sn9AN86841150B52L | M49: 512G | N49: F3 | O49: C5 | P49: ENCD | Q49: ND
A50: 49 | B50: HP | C50: ELITEBOOK 630 G9 | D50: I5-1245U | E50: 3.90 | F50: 16G | G50: NO | H50: YES | I50: YES | J50: 2TK333027R | K50: 2TK333027R | L50: tw07YGY09DH0002J01K5 | M50: 512G | N50: F3 | O50: C5 | P50: ENCD | Q50: ND
A51: 50 | B51: HP | C51: ELITEBOOK 630 G9 | D51: I5-1245U | E51: 3.90 | F51: 16G | G51: NO | H51: YES | I51: YES | J51: 2TK333028W | K51: 2TK333028W | L51: 20153B801936 | M51: 512G | N51: F3 | O51: C5 | P51: ENCD | Q51: ND
A52: 51 | B52: HP | C52: ELITEBOOK 630 G9 | D52: I5-1245U | E52: 3.90 | F52: 16G | G52: NO | H52: YES | I52: YES | J52: 2TK3330291 | K52: 2TK3330291 | L52: 50APC6B9QTML | M52: 512G | N52: F3 | O52: C5 | P52: ENCD | Q52: ND

Sheet QA SAMPLE SIZE SHEET
A1: =NOW() -> 2026-01-06T11:13:00.960
A2: DEPARTMENT: LAPTOPS
A3: LOT# | B3: L-44
A4: NOTE: A sample size test of any material that is purchased as tested or data wiped will be conducted on individual shipments. The sample size may vary between 1% and 5% based on results on initial sampling. If testing Failure Rate of initial sampling is greater than 1%, well will continue to test to 5% of the LOT. If the Failure Rate of initial sampling is greater than 5% the entire Lot will be re-tested. If the test results are 1% or Less, the Lot can be processed for Bid. The Quality Assurance Clerk will conduct a Full Function Test along with a Visual Inspection on 5 or more radom items within the LOT. Record the results below.
A5: # | B5: DISCRIPTION OF PRODUCT | E5: SERIAL NUMBER OR SKU | F5: FUNCTION & COSMETIC CODE | G5: PASS - FAIL
A6: 1 | B6: =TRANSPOSE(INVENTORY!C2) -> LATITUDE 5330 | E6: =TRANSPOSE(INVENTORY!J2) -> 16YRMX3 | F6: F3-C5 | G6: PASS
A7: 2 | B7: =TRANSPOSE(INVENTORY!C3) -> LATITUDE 5330 | E7: =TRANSPOSE(INVENTORY!J3) -> 2CYRMX3 | F7: F3-C5 | G7: PASS
A8: 3 | B8: =TRANSPOSE(INVENTORY!C4) -> LATITUDE 5330 | E8: =TRANSPOSE(INVENTORY!J4) -> 33ZRMX3 | F8: F3-C5 | G8: PASS
A9: 4 | B9: =TRANSPOSE(INVENTORY!C5) -> LATITUDE 5330 | E9: =TRANSPOSE(INVENTORY!J5) -> 37ZRMX3 | F9: F3-C5 | G9: PASS
A10: 5 | B10: =TRANSPOSE(INVENTORY!C6) -> LATITUDE 5330 | E10: =TRANSPOSE(INVENTORY!J6) -> 4F6JFS3 | F10: F3-C5 | G10: PASS
A11: 6
A12: 7
A13: 8
A14: 9
A15: 10
A17: PASS READY FOR BID
A18: _____________________________________________________ QUALITY ASSURANCE CLERK SIGNATURE
A26: FAIL REWORK ENTIRE LOT
A27: _____________________________________________________ QUALITY ASSURANCE CLERK SIGNATURE

Sheet INVENTORY LOG SHEET
A1: INVENTORY LOG SHEET
B3: DEPARTMENT CHECK LIST
A4: DEPT | B4: DEPARTMENT: | G4: LAPTOPS
B5: DESCRIPTION: | G5: 12th GEN
B6: COUNT: | G6: 51
B7: LOT# | G7: L-44
B8: DEPARTMENT SIGNATURE:_______________________DATE:______________
A10: FORK-LIFT | B10: FORK-LIFT CHECK LIST
B11: GROSS WEIGHT:
B12: TARE WEIGHT:
B13: NET WEIGHT:
C14: o | D14: WEIGHED ON SCALE #1 | H14: X | I14: WEIGHED ON SCALE #2
B15: FORK-LIFT DRIVER SIGNATURE:____________________DATE:______________
A17: QA CLERK | B17: QUALITY ASSURANCE CLERK CHECK LIST
B18: o | C18: Inspect the integrity of the shipment, Sign the Tare Sheet and place in Finished Product.
B19: o | C19: Attach 5 Tare Sheets - 1 on each side of the Gaylord/Pallet including the Top of the shipment.
B20: QA SEAL_______________________INSPECTION DATE:___________________
A22: CLERK | B22: CLERK INVENTORY CHECK LIST
B23: PRODUCT ENTERED INTO INVENTORY
B24: FRONT OFFICE CLERK SIGNATURE:_________________DATE:______________

Sheet TAGS
A1: LAPTOP TESTING RECORD | G1: LAPTOP TESTING RECORD
D3: ITEM # | E3: 1 | J3: ITEM # | K3: =E3+1 -> 2
A4: Tester: | B4: RR | C4: Date: | D4: =NOW() -> 2026-01-06T11:13:00.960 | G4: Tester: | H4: RR | I4: Date: | J4: =NOW() -> 2026-01-06T11:13:00.960
A5: Type: | B5: LAPTOP | C5: SN: | D5: =VLOOKUP(E3,INVENTORYDATA,10,FALSE) -> 16YRMX3 | G5: Type: | H5: LAPTOP | I5: SN: | J5: =VLOOKUP(K3,INVENTORYDATA,10,FALSE) -> 2CYRMX3
A6: ="Make: " -> Make: | B6: =VLOOKUP(E3,INVENTORYDATA,2,FALSE) -> DELL | C6: ="Model: " -> Model: | D6: =VLOOKUP(E3,INVENTORYDATA,3,FALSE) -> LATITUDE 5330 | G6: ="Make: " -> Make: | H6: =VLOOKUP(K3,INVENTORYDATA,2,FALSE) -> DELL | I6: ="Model: " -> Model: | J6: =VLOOKUP(K3,INVENTORYDATA,3,FALSE) -> LATITUDE 5330
A7: ="CPU/Speed: " -> CPU/Speed: | B7: =VLOOKUP(E3,INVENTORYDATA,4,FALSE)&" / "&VLOOKUP(E3,INVENTORYDATA,5,FALSE)&"GHz" -> I7-1265U / 4.8GHz | D7: ="Memory: " -> Memory: | E7: =VLOOKUP(E3,INVENTORYDATA,6,FALSE) -> 16G | G7: ="CPU/Speed: " -> CPU/Speed: | H7: =VLOOKUP(K3,INVENTORYDATA,4,FALSE)&" / "&VLOOKUP(K3,INVENTORYDATA,5,FALSE)&"GHz" -> I7-1265U / 4.8GHz | J7: ="Memory: " -> Memory: | K7: =VLOOKUP(K3,INVENTORYDATA,6,FALSE) -> 16G
A9: Key Function | C9: Pass | D9: Fail | E9: Comments | G9: Key Function | I9: Pass | J9: Fail | K9: Comments
A10: Hard Drive Removed | C10: =IF(ISBLANK(VLOOKUP(E3,INVENTORYDATA,13,FALSE)),"X","") ->  | E10: =IF(ISBLANK(VLOOKUP(E3,INVENTORYDATA,13,FALSE)),"",VLOOKUP(E3,INVENTORYDATA,13,FALSE)) -> 512G | G10: Hard Drive Removed | I10: =IF(ISBLANK(VLOOKUP(K3,INVENTORYDATA,13,FALSE)),"X","") ->  | K10: =IF(ISBLANK(VLOOKUP(K3,INVENTORYDATA,13,FALSE)),"",VLOOKUP(K3,INVENTORYDATA,13,FALSE)) -> 512G
A11: Install Memory | C11: X | G11: Install Memory | I11: X
A12: Power ON | C12: X | G12: Power ON | I12: X
A13: Record BIOS info | C13: X | G13: Record BIOS info | I13: X
A14: Check Optical Drive | C14: =IF((VLOOKUP(E3,INVENTORYDATA,7,FALSE))="YES","X","") ->  | D14: =IF((VLOOKUP(E3,INVENTORYDATA,7,FALSE))="NO","X","") -> X | G14: Check Optical Drive | I14: =IF((VLOOKUP(K3,INVENTORYDATA,7,FALSE))="YES","X","") ->  | J14: =IF((VLOOKUP(K3,INVENTORYDATA,7,FALSE))="NO","X","") -> X
A15: Power Off | C15: X | G15: Power Off | I15: X
A16: HDD Serial No. | C16: =IF(ISBLANK(VLOOKUP(E3,INVENTORYDATA,12,FALSE)),"",VLOOKUP(E3,INVENTORYDATA,12,FALSE)) -> cs01N8303115Y242X | G16: HDD Serial No. | I16: =IF(ISBLANK(VLOOKUP(K3,INVENTORYDATA,12,FALSE)),"",VLOOKUP(K3,INVENTORYDATA,12,FALSE)) -> 20208N457415
A18: Tested for key functions,R2/Ready for Resale | G18: Tested for key functions,R2/Ready for Resale
A19: BIOS Lock | B19: Caddy | C19: Optical | D19: WebCam | E19: Battery | G19: BIOS Lock | H19: Caddy | I19: Optical | J19: WebCam | K19: Battery
C20: =VLOOKUP(E3,INVENTORYDATA,7,FALSE) -> NO | D20: =VLOOKUP(E3,INVENTORYDATA,8,FALSE) -> YES | E20: =VLOOKUP(E3,INVENTORYDATA,9,FALSE) -> YES | I20: =VLOOKUP(K3,INVENTORY!$A$2:$N$144,7,FALSE) -> NO | J20: =VLOOKUP(K3,INVENTORY!$A$2:$N$144,8,FALSE) -> YES | K20: =VLOOKUP(K3,INVENTORY!$A$2:$N$144,9,FALSE) -> YES
A22: CPU Cosmetics Defects: | C22: ="Function Code: "&VLOOKUP(E3,INVENTORY!$A$2:$Q$144,14,FALSE) -> Function Code: F3 | G22: CPU Cosmetics Defects: | I22: ="Function Code: "&VLOOKUP(K3,INVENTORY!$A$2:$Q$144,14,FALSE) -> Function Code: F3
C24: ="Cosmetic Code: "&VLOOKUP(E3,INVENTORY!$A$2:$Q$144,15,FALSE) -> Cosmetic Code: C5 | I24: ="Cosmetic Code: "&VLOOKUP(K3,INVENTORY!$A$2:$Q$144,15,FALSE) -> Cosmetic Code: C5
A26: Casing | B26: Plugs/Ports | G26: Casing | H26: Plugs/Ports
A27: Pass | B27: Pass | G27: Pass | H27: Pass
A28: Fail | B28: Fail | D28: TRRC#:L.T.R. | G28: Fail | H28: Fail | J28: TRRC#:L.T.R.
A30: LAPTOP TESTING RECORD | G30: LAPTOP TESTING RECORD
D32: ITEM # | E32: =E3+2 -> 3 | J32: ITEM # | K32: =K3+2 -> 4
A33: Tester: | B33: RR | C33: Date: | D33: =NOW() -> 2026-01-06T11:13:00.960 | G33: Tester: | H33: RR | I33: Date: | J33: =NOW() -> 2026-01-06T11:13:00.960
A34: Type: | B34: LAPTOP | C34: SN: | D34: =VLOOKUP(E32,INVENTORYDATA,10,FALSE) -> 33ZRMX3 | G34: Type: | H34: LAPTOP | I34: SN: | J34: =VLOOKUP(K32,INVENTORYDATA,10,FALSE) -> 37ZRMX3
A35: ="Make: " -> Make: | B35: =VLOOKUP(E32,INVENTORYDATA,2,FALSE) -> DELL | C35: ="Model: " -> Model: | D35: =VLOOKUP(E32,INVENTORYDATA,3,FALSE) -> LATITUDE 5330 | G35: ="Make: " -> Make: | H35: =VLOOKUP(K32,INVENTORYDATA,2,FALSE) -> DELL | I35: ="Model: " -> Model: | J35: =VLOOKUP(K32,INVENTORYDATA,3,FALSE) -> LATITUDE 5330
A36: ="CPU/Speed: " -> CPU/Speed: | B36: =VLOOKUP(E32,INVENTORYDATA,4,FALSE)&" / "&VLOOKUP(E32,INVENTORYDATA,5,FALSE)&"GHz" -> I7-1265U / 4.8GHz | D36: ="Memory: " -> Memory: | E36: =VLOOKUP(E32,INVENTORYDATA,6,FALSE) -> 16G | G36: ="CPU/Speed: " -> CPU/Speed: | H36: =VLOOKUP(K32,INVENTORYDATA,4,FALSE)&" / "&VLOOKUP(K32,INVENTORYDATA,5,FALSE)&"GHz" -> I7-1265U / 4.8GHz | J36: ="Memory: " -> Memory: | K36: =VLOOKUP(K32,INVENTORYDATA,6,FALSE) -> 16G
A38: Key Function | C38: Pass | D38: Fail | E38: Comments | G38: Key Function | I38: Pass | J38: Fail | K38: Comments
A39: Hard Drive Removed | C39: =IF(ISBLANK(VLOOKUP(E32,INVENTORYDATA,13,FALSE)),"X","") ->  | E39: =IF(ISBLANK(VLOOKUP(E32,INVENTORYDATA,13,FALSE)),"",VLOOKUP(E32,INVENTORYDATA,13,FALSE)) -> 512G | G39: Hard Drive Removed | I39: =IF(ISBLANK(VLOOKUP(K32,INVENTORYDATA,13,FALSE)),"X","") ->  | K39: =IF(ISBLANK(VLOOKUP(K32,INVENTORYDATA,13,FALSE)),"",VLOOKUP(K32,INVENTORYDATA,13,FALSE)) -> 512G
A40: Install Memory | C40: X | G40: Install Memory | I40: X
A41: Power ON | C41: X | G41: Power ON | I41: X
A42: Record BIOS info | C42: X | G42: Record BIOS info | I42: X
A43: Check Optical Drive | C43: =IF((VLOOKUP(E32,INVENTORYDATA,7,FALSE))="YES","X","") ->  | D43: =IF((VLOOKUP(E32,INVENTORYDATA,7,FALSE))="NO","X","") -> X | G43: Check Optical Drive | I43: =IF((VLOOKUP(K32,INVENTORYDATA,7,FALSE))="YES","X","") ->  | J43: =IF((VLOOKUP(K32,INVENTORYDATA,7,FALSE))="NO","X","") -> X
A44: Power Off | C44: X | G44: Power Off | I44: X
A45: HDD Serial No. | C45: =IF(ISBLANK(VLOOKUP(E32,INVENTORYDATA,12,FALSE)),"",VLOOKUP(E32,INVENTORYDATA,12,FALSE)) -> sn9AN90181030B52F | G45: HDD Serial No. | I45: =IF(ISBLANK(VLOOKUP(K32,INVENTORYDATA,12,FALSE)),"",VLOOKUP(K32,INVENTORYDATA,12,FALSE)) -> an9CN49421090C84L
A47: Tested for key functions,R2/Ready for Resale | G47: Tested for key functions,R2/Ready for Resale
A48: BIOS Lock | B48: Caddy | C48: Optical | D48: WebCam | E48: Battery | G48: BIOS Lock | H48: Caddy | I48: Optical | J48: WebCam | K48: Battery
C49: =VLOOKUP(E32,INVENTORY!$A$2:$N$144,7,FALSE) -> NO | D49: =VLOOKUP(E32,INVENTORY!$A$2:$N$144,8,FALSE) -> YES | E49: =VLOOKUP(E32,INVENTORY!$A$2:$N$144,9,FALSE) -> YES | I49: =VLOOKUP(K32,INVENTORY!$A$2:$N$144,7,FALSE) -> NO | J49: =VLOOKUP(K32,INVENTORY!$A$2:$N$144,8,FALSE) -> YES | K49: =VLOOKUP(K32,INVENTORY!$A$2:$N$144,9,FALSE) -> YES
A51: CPU Cosmetics Defects: | C51: ="Function Code: "&VLOOKUP(E32,INVENTORY!$A$2:$Q$144,14,FALSE) -> Function Code: F3 | G51: CPU Cosmetics Defects: | I51: ="Function Code: "&VLOOKUP(K32,INVENTORY!$A$2:$Q$144,14,FALSE) -> Function Code: F3
C53: ="Cosmetic Code: "&VLOOKUP(E32,INVENTORY!$A$2:$Q$144,15,FALSE) -> Cosmetic Code: C5 | I53: ="Cosmetic Code: "&VLOOKUP(K32,INVENTORY!$A$2:$Q$144,15,FALSE) -> Cosmetic Code: C5
A55: Casing | B55: Plugs/Ports | G55: Casing | H55: Plugs/Ports
A56: Pass | B56: Pass | G56: Pass | H56: Pass
A57: Fail | B57: Fail | D57: TRRC#:L.T.R. | G57: Fail | H57: Fail | J57: TRRC#:L.T.R.
A59: LAPTOP TESTING RECORD | G59: LAPTOP TESTING RECORD
D61: ITEM # | E61: =E32+2 -> 5 | J61: ITEM # | K61: =K32+2 -> 6
A62: Tester: | B62: RR | C62: Date: | D62: =NOW() -> 2026-01-06T11:13:00.960 | G62: Tester: | H62: RR | I62: Date: | J62: =NOW() -> 2026-01-06T11:13:00.960
A63: Type: | B63: LAPTOP | C63: SN: | D63: =VLOOKUP(E61,INVENTORYDATA,10,FALSE) -> 4F6JFS3 | G63: Type: | H63: LAPTOP | I63: SN: | J63: =VLOOKUP(K61,INVENTORYDATA,10,FALSE) -> 5NNRMX3
A64: ="Make: " -> Make: | B64: =VLOOKUP(E61,INVENTORYDATA,2,FALSE) -> DELL | C64: ="Model: " -> Model: | D64: =VLOOKUP(E61,INVENTORYDATA,3,FALSE) -> LATITUDE 5330 | G64: ="Make: " -> Make: | H64: =VLOOKUP(K61,INVENTORYDATA,2,FALSE) -> DELL | I64: ="Model: " -> Model: | J64: =VLOOKUP(K61,INVENTORYDATA,3,FALSE) -> LATITUDE 5330
A65: ="CPU/Speed: " -> CPU/Speed: | B65: =VLOOKUP(E61,INVENTORYDATA,4,FALSE)&" / "&VLOOKUP(E61,INVENTORYDATA,5,FALSE)&"GHz" -> I7-1265U / 4.8GHz | D65: ="Memory: " -> Memory: | E65: =VLOOKUP(E61,INVENTORYDATA,6,FALSE) -> 16G | G65: ="CPU/Speed: " -> CPU/Speed: | H65: =VLOOKUP(K61,INVENTORYDATA,4,FALSE)&" / "&VLOOKUP(K61,INVENTORYDATA,5,FALSE)&"GHz" -> I7-1265U / 4.8GHz | J65: ="Memory: " -> Memory: | K65: =VLOOKUP(K61,INVENTORYDATA,6,FALSE) -> 16G
A67: Key Function | C67: Pass | D67: Fail | E67: Comments | G67: Key Function | I67: Pass | J67: Fail | K67: Comments
A68: Hard Drive Removed | C68: =IF(ISBLANK(VLOOKUP(E61,INVENTORYDATA,13,FALSE)),"X","") ->  | E68: =IF(ISBLANK(VLOOKUP(E61,INVENTORYDATA,13,FALSE)),"",VLOOKUP(E61,INVENTORYDATA,13,FALSE)) -> 512G | G68: Hard Drive Removed | I68: =IF(ISBLANK(VLOOKUP(K61,INVENTORYDATA,13,FALSE)),"X","") ->  | K68: =IF(ISBLANK(VLOOKUP(K61,INVENTORYDATA,13,FALSE)),"",VLOOKUP(K61,INVENTORYDATA,13,FALSE)) -> 512G
A69: Install Memory | C69: X | G69: Install Memory | I69: X
A70: Power ON | C70: X | G70: Power ON | I70: X
A71: Record BIOS info | C71: X | G71: Record BIOS info | I71: X
A72: Check Optical Drive | C72: =IF((VLOOKUP(E61,INVENTORYDATA,7,FALSE))="YES","X","") ->  | D72: =IF((VLOOKUP(E61,INVENTORYDATA,7,FALSE))="NO","X","") -> X | G72: Check Optical Drive | I72: =IF((VLOOKUP(K61,INVENTORYDATA,7,FALSE))="YES","X","") ->  | J72: =IF((VLOOKUP(K61,INVENTORYDATA,7,FALSE))="NO","X","") -> X
A73: Power Off | C73: X | G73: Power Off | I73: X
A74: HDD Serial No. | C74: =IF(ISBLANK(VLOOKUP(E61,INVENTORYDATA,12,FALSE)),"",VLOOKUP(E61,INVENTORYDATA,12,FALSE)) -> cd03N7051111Y3Q5M | G74: HDD Serial No. | I74: =IF(ISBLANK(VLOOKUP(K61,INVENTORYDATA,12,FALSE)),"",VLOOKUP(K61,INVENTORYDATA,12,FALSE)) -> sn9AN86841330B51Q
A76: Tested for key functions,R2/Ready for Resale | G76: Tested for key functions,R2/Ready for Resale
A77: BIOS Lock | B77: Caddy | C77: Optical | D77: WebCam | E77: Battery | G77: BIOS Lock | H77: Caddy | I77: Optical | J77: WebCam | K77: Battery
C78: =VLOOKUP(E61,INVENTORY!$A$2:$N$144,7,FALSE) -> NO | D78: =VLOOKUP(E61,INVENTORY!$A$2:$N$144,8,FALSE) -> YES | E78: =VLOOKUP(E61,INVENTORY!$A$2:$N$144,9,FALSE) -> YES | I78: =VLOOKUP(K61,INVENTORY!$A$2:$N$144,7,FALSE) -> NO | J78: =VLOOKUP(K61,INVENTORY!$A$2:$N$144,8,FALSE) -> YES | K78: =VLOOKUP(K61,INVENTORY!$A$2:$N$144,9,FALSE) -> YES
A80: CPU Cosmetics Defects: | C80: ="Function Code: "&VLOOKUP(E61,INVENTORY!$A$2:$Q$144,14,FALSE) -> Function Code: F3 | G80: CPU Cosmetics Defects: | I80: ="Function Code: "&VLOOKUP(K61,INVENTORY!$A$2:$Q$144,14,FALSE) -> Function Code: F3
C82: ="Cosmetic Code: "&VLOOKUP(E61,INVENTORY!$A$2:$Q$144,15,FALSE) -> Cosmetic Code: C5 | I82: ="Cosmetic Code: "&VLOOKUP(K61,INVENTORY!$A$2:$Q$144,15,FALSE) -> Cosmetic Code: C5
A84: Casing | B84: Plugs/Ports | G84: Casing | H84: Plugs/Ports
A85: Pass | B85: Pass | G85: Pass | H85: Pass
A86: Fail | B86: Fail | D86: TRRC#:L.T.R. | G86: Fail | H86: Fail | J86: TRRC#:L.T.R.
A88: LAPTOP TESTING RECORD | G88: LAPTOP TESTING RECORD
D90: ITEM # | E90: =E61+2 -> 7 | J90: ITEM # | K90: =K61+2 -> 8
A91: Tester: | B91: RR | C91: Date: | D91: =NOW() -> 2026-01-06T11:13:00.960 | G91: Tester: | H91: RR | I91: Date: | J91: =NOW() -> 2026-01-06T11:13:00.960
A92: Type: | B92: LAPTOP | C92: SN: | D92: =VLOOKUP(E90,INVENTORYDATA,10,FALSE) -> 5T9JFS3 | G92: Type: | H92: LAPTOP | I92: SN: | J92: =VLOOKUP(K90,INVENTORYDATA,10,FALSE) -> 61PRMX3
A93: ="Make: " -> Make: | B93: =VLOOKUP(E90,INVENTORYDATA,2,FALSE) -> DELL | C93: ="Model: " -> Model: | D93: =VLOOKUP(E90,INVENTORYDATA,3,FALSE) -> LATITUDE 5330 | G93: ="Make: " -> Make: | H93: =VLOOKUP(K90,INVENTORYDATA,2,FALSE) -> DELL | I93: ="Model: " -> Model: | J93: =VLOOKUP(K90,INVENTORYDATA,3,FALSE) -> LATITUDE 5330
A94: ="CPU/Speed: " -> CPU/Speed: | B94: =VLOOKUP(E90,INVENTORYDATA,4,FALSE)&" / "&VLOOKUP(E90,INVENTORYDATA,5,FALSE)&"GHz" -> I7-1265U / 4.8GHz | D94: ="Memory: " -> Memory: | E94: =VLOOKUP(E90,INVENTORYDATA,6,FALSE) -> 16G | G94: ="CPU/Speed: " -> CPU/Speed: | H94: =VLOOKUP(K90,INVENTORYDATA,4,FALSE)&" / "&VLOOKUP(K90,INVENTORYDATA,5,FALSE)&"GHz" -> I7-1265U / 4.8GHz | J94: ="Memory: " -> Memory: | K94: =VLOOKUP(K90,INVENTORYDATA,6,FALSE) -> 16G
A96: Key Function | C96: Pass | D96: Fail | E96: Comments | G96: Key Function | I96: Pass | J96: Fail | K96: Comments
A97: Hard Drive Removed | C97: =IF(ISBLANK(VLOOKUP(E90,INVENTORYDATA,13,FALSE)),"X","") ->  | E97: =IF(ISBLANK(VLOOKUP(E90,INVENTORYDATA,13,FALSE)),"",VLOOKUP(E90,INVENTORYDATA,13,FALSE)) -> 512G | G97: Hard Drive Removed | I97: =IF(ISBLANK(VLOOKUP(K90,INVENTORYDATA,13,FALSE)),"X","") ->  | K97: =IF(ISBLANK(VLOOKUP(K90,INVENTORYDATA,13,FALSE)),"",VLOOKUP(K90,INVENTORYDATA,13,FALSE)) -> 512G
A98: Install Memory | C98: X | G98: Install Memory | I98: X
A99: Power ON | C99: X | G99: Power ON | I99: X
A100: Record BIOS info | C100: X | G100: Record BIOS info | I100: X
A101: Check Optical Drive | C101: =IF((VLOOKUP(E90,INVENTORYDATA,7,FALSE))="YES","X","") ->  | D101: =IF((VLOOKUP(E90,INVENTORYDATA,7,FALSE))="NO","X","") -> X | G101: Check Optical Drive | I101: =IF((VLOOKUP(K90,INVENTORYDATA,7,FALSE))="YES","X","") ->  | J101: =IF((VLOOKUP(K90,INVENTORYDATA,7,FALSE))="NO","X","") -> X
A102: Power Off | C102: X | G102: Power Off | I102: X
A103: HDD Serial No. | C103: =IF(ISBLANK(VLOOKUP(E90,INVENTORYDATA,12,FALSE)),"",VLOOKUP(E90,INVENTORYDATA,12,FALSE)) -> 20168Z453921 | G103: HDD Serial No. | I103: =IF(ISBLANK(VLOOKUP(K90,INVENTORYDATA,12,FALSE)),"",VLOOKUP(K90,INVENTORYDATA,12,FALSE)) -> s509NF0N212815
A105: Tested for key functions,R2/Ready for Resale | G105: Tested for key functions,R2/Ready for Resale
A106: BIOS Lock | B106: Caddy | C106: Optical | D106: WebCam | E106: Battery | G106: BIOS Lock | H106: Caddy | I106: Optical | J106: WebCam | K106: Battery
C107: =VLOOKUP(E90,INVENTORY!$A$2:$N$144,7,FALSE) -> NO | D107: =VLOOKUP(E90,INVENTORY!$A$2:$N$144,8,FALSE) -> YES | E107: =VLOOKUP(E90,INVENTORY!$A$2:$N$144,9,FALSE) -> YES | I107: =VLOOKUP(K90,INVENTORY!$A$2:$N$144,7,FALSE) -> NO | J107: =VLOOKUP(K90,INVENTORY!$A$2:$N$144,8,FALSE) -> YES | K107: =VLOOKUP(K90,INVENTORY!$A$2:$N$144,9,FALSE) -> YES
A109: CPU Cosmetics Defects: | C109: ="Function Code: "&VLOOKUP(E90,INVENTORY!$A$2:$Q$144,14,FALSE) -> Function Code: F3 | G109: CPU Cosmetics Defects: | I109: ="Function Code: "&VLOOKUP(K90,INVENTORY!$A$2:$Q$144,14,FALSE) -> Function Code: F3
C111: ="Cosmetic Code: "&VLOOKUP(E90,INVENTORY!$A$2:$Q$144,15,FALSE) -> Cosmetic Code: C5 | I111: ="Cosmetic Code: "&VLOOKUP(K90,INVENTORY!$A$2:$Q$144,15,FALSE) -> Cosmetic Code: C5
A113: Casing | B113: Plugs/Ports | G113: Casing | H113: Plugs/Ports
A114: Pass | B114: Pass | G114: Pass | H114: Pass
A115: Fail | B115: Fail | D115: TRRC#:L.T.R. | G115: Fail | H115: Fail | J115: TRRC#:L.T.R.
A117: LAPTOP TESTING RECORD | G117: LAPTOP TESTING RECORD
D119: ITEM # | E119: =E90+2 -> 9 | J119: ITEM # | K119: =K90+2 -> 10
A120: Tester: | B120: RR | C120: Date: | D120: =NOW() -> 2026-01-06T11:13:00.960 | G120: Tester: | H120: RR | I120: Date: | J120: =NOW() -> 2026-01-06T11:13:00.960
A121: Type: | B121: LAPTOP | C121: SN: | D121: =VLOOKUP(E119,INVENTORYDATA,10,FALSE) -> 6GNSMX3 | G121: Type: | H121: LAPTOP | I121: SN: | J121: =VLOOKUP(K119,INVENTORYDATA,10,FALSE) -> 6PPSMX3
A122: ="Make: " -> Make: | B122: =VLOOKUP(E119,INVENTORYDATA,2,FALSE) -> DELL | C122: ="Model: " -> Model: | D122: =VLOOKUP(E119,INVENTORYDATA,3,FALSE) -> LATITUDE 5330 | G122: ="Make: " -> Make: | H122: =VLOOKUP(K119,INVENTORYDATA,2,FALSE) -> DELL | I122: ="Model: " -> Model: | J122: =VLOOKUP(K119,INVENTORYDATA,3,FALSE) -> LATITUDE 5330
A123: ="CPU/Speed: " -> CPU/Speed: | B123: =VLOOKUP(E119,INVENTORYDATA,4,FALSE)&" / "&VLOOKUP(E119,INVENTORYDATA,5,FALSE)&"GHz" -> I7-1265U / 4.8GHz | D123: ="Memory: " -> Memory: | E123: =VLOOKUP(E119,INVENTORYDATA,6,FALSE) -> 16G | G123: ="CPU/Speed: " -> CPU/Speed: | H123: =VLOOKUP(K119,INVENTORYDATA,4,FALSE)&" / "&VLOOKUP(K119,INVENTORYDATA,5,FALSE)&"GHz" -> I7-1265U / 4.8GHz | J123: ="Memory: " -> Memory: | K123: =VLOOKUP(K119,INVENTORYDATA,6,FALSE) -> 16G
A125: Key Function | C125: Pass | D125: Fail | E125: Comments | G125: Key Function | I125: Pass | J125: Fail | K125: Comments
A126: Hard Drive Removed | C126: =IF(ISBLANK(VLOOKUP(E119,INVENTORYDATA,13,FALSE)),"X","") ->  | E126: =IF(ISBLANK(VLOOKUP(E119,INVENTORYDATA,13,FALSE)),"",VLOOKUP(E119,INVENTORYDATA,13,FALSE)) -> 512G | G126: Hard Drive Removed | I126: =IF(ISBLANK(VLOOKUP(K119,INVENTORYDATA,13,FALSE)),"X","") ->  | K126: =IF(ISBLANK(VLOOKUP(K119,INVENTORYDATA,13,FALSE)),"",VLOOKUP(K119,INVENTORYDATA,13,FALSE)) -> 512G
A127: Install Memory | C127: X | G127: Install Memory | I127: X
A128: Power ON | C128: X | G128: Power ON | I128: X
A129: Record BIOS info | C129: X | G129: Record BIOS info | I129: X
A130: Check Optical Drive | C130: =IF((VLOOKUP(E119,INVENTORYDATA,7,FALSE))="YES","X","") ->  | D130: =IF((VLOOKUP(E119,INVENTORYDATA,7,FALSE))="NO","X","") -> X | G130: Check Optical Drive | I130: =IF((VLOOKUP(K119,INVENTORYDATA,7,FALSE))="YES","X","") ->  | J130: =IF((VLOOKUP(K119,INVENTORYDATA,7,FALSE))="NO","X","") -> X
A131: Power Off | C131: X | G131: Power Off | I131: X
A132: HDD Serial No. | C132: =IF(ISBLANK(VLOOKUP(E119,INVENTORYDATA,12,FALSE)),"",VLOOKUP(E119,INVENTORYDATA,12,FALSE)) -> sn9AN79241340B44F | G132: HDD Serial No. | I132: =IF(ISBLANK(VLOOKUP(K119,INVENTORYDATA,12,FALSE)),"",VLOOKUP(K119,INVENTORYDATA,12,FALSE)) -> 991PC3GTPQFN
A134: Tested for key functions,R2/Ready for Resale | G134: Tested for key functions,R2/Ready for Resale
A135: BIOS Lock | B135: Caddy | C135: Optical | D135: WebCam | E135: Battery | G135: BIOS Lock | H135: Caddy | I135: Optical | J135: WebCam | K135: Battery
C136: =VLOOKUP(E119,INVENTORY!$A$2:$N$144,7,FALSE) -> NO | D136: =VLOOKUP(E119,INVENTORY!$A$2:$N$144,8,FALSE) -> YES | E136: =VLOOKUP(E119,INVENTORY!$A$2:$N$144,9,FALSE) -> YES | I136: =VLOOKUP(K119,INVENTORY!$A$2:$N$144,7,FALSE) -> NO | J136: =VLOOKUP(K119,INVENTORY!$A$2:$N$144,8,FALSE) -> YES | K136: =VLOOKUP(K119,INVENTORY!$A$2:$N$144,9,FALSE) -> YES
A138: CPU Cosmetics Defects: | C138: ="Function Code: "&VLOOKUP(E119,INVENTORY!$A$2:$Q$144,14,FALSE) -> Function Code: F3 | G138: CPU Cosmetics Defects: | I138: ="Function Code: "&VLOOKUP(K119,INVENTORY!$A$2:$Q$144,14,FALSE) -> Function Code: F3
C140: ="Cosmetic Code: "&VLOOKUP(E119,INVENTORY!$A$2:$Q$144,15,FALSE) -> Cosmetic Code: C5 | I140: ="Cosmetic Code: "&VLOOKUP(K119,INVENTORY!$A$2:$Q$144,15,FALSE) -> Cosmetic Code: C5
A142: Casing | B142: Plugs/Ports | G142: Casing | H142: Plugs/Ports
A143: Pass | B143: Pass | G143: Pass | H143: Pass
A144: Fail | B144: Fail | D144: TRRC#:L.T.R. | G144: Fail | H144: Fail | J144: TRRC#:L.T.R.
A146: LAPTOP TESTING RECORD | G146: LAPTOP TESTING RECORD
D148: ITEM # | E148: =E119+2 -> 11 | J148: ITEM # | K148: =K119+2 -> 12
A149: Tester: | B149: RR | C149: Date: | D149: =NOW() -> 2026-01-06T11:13:00.960 | G149: Tester: | H149: RR | I149: Date: | J149: =NOW() -> 2026-01-06T11:13:00.960
A150: Type: | B150: LAPTOP | C150: SN: | D150: =VLOOKUP(E148,INVENTORYDATA,10,FALSE) -> 80LSMX3 | G150: Type: | H150: LAPTOP | I150: SN: | J150: =VLOOKUP(K148,INVENTORYDATA,10,FALSE) -> 83QSMX3
A151: ="Make: " -> Make: | B151: =VLOOKUP(E148,INVENTORYDATA,2,FALSE) -> DELL | C151: ="Model: " -> Model: | D151: =VLOOKUP(E148,INVENTORYDATA,3,FALSE) -> LATITUDE 5330 | G151: ="Make: " -> Make: | H151: =VLOOKUP(K148,INVENTORYDATA,2,FALSE) -> DELL | I151: ="Model: " -> Model: | J151: =VLOOKUP(K148,INVENTORYDATA,3,FALSE) -> LATITUDE 5330
A152: ="CPU/Speed: " -> CPU/Speed: | B152: =VLOOKUP(E148,INVENTORYDATA,4,FALSE)&" / "&VLOOKUP(E148,INVENTORYDATA,5,FALSE)&"GHz" -> I7-1265U / 4.8GHz | D152: ="Memory: " -> Memory: | E152: =VLOOKUP(E148,INVENTORYDATA,6,FALSE) -> 16G | G152: ="CPU/Speed: " -> CPU/Speed: | H152: =VLOOKUP(K148,INVENTORYDATA,4,FALSE)&" / "&VLOOKUP(K148,INVENTORYDATA,5,FALSE)&"GHz" -> I7-1265U / 4.8GHz | J152: ="Memory: " -> Memory: | K152: =VLOOKUP(K148,INVENTORYDATA,6,FALSE) -> 16G
A154: Key Function | C154: Pass | D154: Fail | E154: Comments | G154: Key Function | I154: Pass | J154: Fail | K154: Comments
A155: Hard Drive Removed | C155: =IF(ISBLANK(VLOOKUP(E148,INVENTORYDATA,13,FALSE)),"X","") ->  | E155: =IF(ISBLANK(VLOOKUP(E148,INVENTORYDATA,13,FALSE)),"",VLOOKUP(E148,INVENTORYDATA,13,FALSE)) -> 512G | G155: Hard Drive Removed | I155: =IF(ISBLANK(VLOOKUP(K148,INVENTORYDATA,13,FALSE)),"X","") ->  | K155: =IF(ISBLANK(VLOOKUP(K148,INVENTORYDATA,13,FALSE)),"",VLOOKUP(K148,INVENTORYDATA,13,FALSE)) -> 512G
A156: Install Memory | C156: X | G156: Install Memory | I156: X
A157: Power ON | C157: X | G157: Power ON | I157: X
A158: Record BIOS info | C158: X | G158: Record BIOS info | I158: X
A159: Check Optical Drive | C159: =IF((VLOOKUP(E148,INVENTORYDATA,7,FALSE))="YES","X","") ->  | D159: =IF((VLOOKUP(E148,INVENTORYDATA,7,FALSE))="NO","X","") -> X | G159: Check Optical Drive | I159: =IF((VLOOKUP(K148,INVENTORYDATA,7,FALSE))="YES","X","") ->  | J159: =IF((VLOOKUP(K148,INVENTORYDATA,7,FALSE))="NO","X","") -> X
A160: Power Off | C160: X | G160: Power Off | I160: X
A161: HDD Serial No. | C161: =IF(ISBLANK(VLOOKUP(E148,INVENTORYDATA,12,FALSE)),"",VLOOKUP(E148,INVENTORYDATA,12,FALSE)) -> cs06N169813906F0Q | G161: HDD Serial No. | I161: =IF(ISBLANK(VLOOKUP(K148,INVENTORYDATA,12,FALSE)),"",VLOOKUP(K148,INVENTORYDATA,12,FALSE)) -> 1951AD444020
A163: Tested for key functions,R2/Ready for Resale | G163: Tested for key functions,R2/Ready for Resale
A164: BIOS Lock | B164: Caddy | C164: Optical | D164: WebCam | E164: Battery | G164: BIOS Lock | H164: Caddy | I164: Optical | J164: WebCam | K164: Battery
C165: =VLOOKUP(E148,INVENTORY!$A$2:$N$144,7,FALSE) -> NO | D165: =VLOOKUP(E148,INVENTORY!$A$2:$N$144,8,FALSE) -> YES | E165: =VLOOKUP(E148,INVENTORY!$A$2:$N$144,9,FALSE) -> YES | I165: =VLOOKUP(K148,INVENTORY!$A$2:$N$144,7,FALSE) -> NO | J165: =VLOOKUP(K148,INVENTORY!$A$2:$N$144,8,FALSE) -> YES | K165: =VLOOKUP(K148,INVENTORY!$A$2:$N$144,9,FALSE) -> YES
A167: CPU Cosmetics Defects: | C167: ="Function Code: "&VLOOKUP(E148,INVENTORY!$A$2:$Q$144,14,FALSE) -> Function Code: F3 | G167: CPU Cosmetics Defects: | I167: ="Function Code: "&VLOOKUP(K148,INVENTORY!$A$2:$Q$144,14,FALSE) -> Function Code: F3
C169: ="Cosmetic Code: "&VLOOKUP(E148,INVENTORY!$A$2:$Q$144,15,FALSE) -> Cosmetic Code: C5 | I169: ="Cosmetic Code: "&VLOOKUP(K148,INVENTORY!$A$2:$Q$144,15,FALSE) -> Cosmetic Code: C5
A171: Casing | B171: Plugs/Ports | G171: Casing | H171: Plugs/Ports
A172: Pass | B172: Pass | G172: Pass | H172: Pass
A173: Fail | B173: Fail | D173: TRRC#:L.T.R. | G173: Fail | H173: Fail | J173: TRRC#:L.T.R.
A175: LAPTOP TESTING RECORD | G175: LAPTOP TESTING RECORD
D177: ITEM # | E177: =E148+2 -> 13 | J177: ITEM # | K177: =K148+2 -> 14
A178: Tester: | B178: RR | C178: Date: | D178: =NOW() -> 2026-01-06T11:13:00.960 | G178: Tester: | H178: RR | I178: Date: | J178: =NOW() -> 2026-01-06T11:13:00.960
A179: Type: | B179: LAPTOP | C179: SN: | D179: =VLOOKUP(E177,INVENTORYDATA,10,FALSE) -> 8YMSMX3 | G179: Type: | H179: LAPTOP | I179: SN: | J179: =VLOOKUP(K177,INVENTORYDATA,10,FALSE) -> B3QSMX3
A180: ="Make: " -> Make: | B180: =VLOOKUP(E177,INVENTORYDATA,2,FALSE) -> DELL | C180: ="Model: " -> Model: | D180: =VLOOKUP(E177,INVENTORYDATA,3,FALSE) -> LATITUDE 5330 | G180: ="Make: " -> Make: | H180: =VLOOKUP(K177,INVENTORYDATA,2,FALSE) -> DELL | I180: ="Model: " -> Model: | J180: =VLOOKUP(K177,INVENTORYDATA,3,FALSE) -> LATITUDE 5330
A181: ="CPU/Speed: " -> CPU/Speed: | B181: =VLOOKUP(E177,INVENTORYDATA,4,FALSE)&" / "&VLOOKUP(E177,INVENTORYDATA,5,FALSE)&"GHz" -> I7-1265U / 4.8GHz | D181: ="Memory: " -> Memory: | E181: =VLOOKUP(E177,INVENTORYDATA,6,FALSE) -> 16G | G181: ="CPU/Speed: " -> CPU/Speed: | H181: =VLOOKUP(K177,INVENTORYDATA,4,FALSE)&" / "&VLOOKUP(K177,INVENTORYDATA,5,FALSE)&"GHz" -> I7-1265U / 4.8GHz | J181: ="Memory: " -> Memory: | K181: =VLOOKUP(K177,INVENTORYDATA,6,FALSE) -> 16G
A183: Key Function | C183: Pass | D183: Fail | E183: Comments | G183: Key Function | I183: Pass | J183: Fail | K183: Comments
A184: Hard Drive Removed | C184: =IF(ISBLANK(VLOOKUP(E177,INVENTORYDATA,13,FALSE)),"X","") ->  | E184: =IF(ISBLANK(VLOOKUP(E177,INVENTORYDATA,13,FALSE)),"",VLOOKUP(E177,INVENTORYDATA,13,FALSE)) -> 512G | G184: Hard Drive Removed | I184: =IF(ISBLANK(VLOOKUP(K177,INVENTORYDATA,13,FALSE)),"X","") ->  | K184: =IF(ISBLANK(VLOOKUP(K177,INVENTORYDATA,13,FALSE)),"",VLOOKUP(K177,INVENTORYDATA,13,FALSE)) -> 512G
A185: Install Memory | C185: X | G185: Install Memory | I185: X
A186: Power ON | C186: X | G186: Power ON | I186: X
A187: Record BIOS info | C187: X | G187: Record BIOS info | I187: X
A188: Check Optical Drive | C188: =IF((VLOOKUP(E177,INVENTORYDATA,7,FALSE))="YES","X","") ->  | D188: =IF((VLOOKUP(E177,INVENTORYDATA,7,FALSE))="NO","X","") -> X | G188: Check Optical Drive | I188: =IF((VLOOKUP(K177,INVENTORYDATA,7,FALSE))="YES","X","") ->  | J188: =IF((VLOOKUP(K177,INVENTORYDATA,7,FALSE))="NO","X","") -> X
A189: Power Off | C189: X | G189: Power Off | I189: X
A190: HDD Serial No. | C190: =IF(ISBLANK(VLOOKUP(E177,INVENTORYDATA,12,FALSE)),"",VLOOKUP(E177,INVENTORYDATA,12,FALSE)) -> sn9AN74551100AU38 | G190: HDD Serial No. | I190: =IF(ISBLANK(VLOOKUP(K177,INVENTORYDATA,12,FALSE)),"",VLOOKUP(K177,INVENTORYDATA,12,FALSE)) -> sn9AN90181030B52P
A192: Tested for key functions,R2/Ready for Resale | G192: Tested for key functions,R2/Ready for Resale
A193: BIOS Lock | B193: Caddy | C193: Optical | D193: WebCam | E193: Battery | G193: BIOS Lock | H193: Caddy | I193: Optical | J193: WebCam | K193: Battery
C194: =VLOOKUP(E177,INVENTORY!$A$2:$N$144,7,FALSE) -> NO | D194: =VLOOKUP(E177,INVENTORY!$A$2:$N$144,8,FALSE) -> YES | E194: =VLOOKUP(E177,INVENTORY!$A$2:$N$144,9,FALSE) -> YES | I194: =VLOOKUP(K177,INVENTORY!$A$2:$N$144,7,FALSE) -> NO | J194: =VLOOKUP(K177,INVENTORY!$A$2:$N$144,8,FALSE) -> YES | K194: =VLOOKUP(K177,INVENTORY!$A$2:$N$144,9,FALSE) -> YES
A196: CPU Cosmetics Defects: | C196: ="Function Code: "&VLOOKUP(E177,INVENTORY!$A$2:$Q$144,14,FALSE) -> Function Code: F3 | G196: CPU Cosmetics Defects: | I196: ="Function Code: "&VLOOKUP(K177,INVENTORY!$A$2:$Q$144,14,FALSE) -> Function Code: F3
C198: ="Cosmetic Code: "&VLOOKUP(E177,INVENTORY!$A$2:$Q$144,15,FALSE) -> Cosmetic Code: C5 | I198: ="Cosmetic Code: "&VLOOKUP(K177,INVENTORY!$A$2:$Q$144,15,FALSE) -> Cosmetic Code: C5
A200: Casing | B200: Plugs/Ports | G200: Casing | H200: Plugs/Ports
A201: Pass | B201: Pass | G201: Pass | H201: Pass
A202: Fail | B202: Fail | D202: TRRC#:L.T.R. | G202: Fail | H202: Fail | J202: TRRC#:L.T.R.
A204: LAPTOP TESTING RECORD | G204: LAPTOP TESTING RECORD
D206: ITEM # | E206: =E177+2 -> 15 | J206: ITEM # | K206: =K177+2 -> 16
A207: Tester: | B207: RR | C207: Date: | D207: =NOW() -> 2026-01-06T11:13:00.960 | G207: Tester: | H207: RR | I207: Date: | J207: =NOW() -> 2026-01-06T11:13:00.960
A208: Type: | B208: LAPTOP | C208: SN: | D208: =VLOOKUP(E206,INVENTORYDATA,10,FALSE) -> B8ZRMX3 | G208: Type: | H208: LAPTOP | I208: SN: | J208: =VLOOKUP(K206,INVENTORYDATA,10,FALSE) -> C1PRMX3
A209: ="Make: " -> Make: | B209: =VLOOKUP(E206,INVENTORYDATA,2,FALSE) -> DELL | C209: ="Model: " -> Model: | D209: =VLOOKUP(E206,INVENTORYDATA,3,FALSE) -> LATITUDE 5330 | G209: ="Make: " -> Make: | H209: =VLOOKUP(K206,INVENTORYDATA,2,FALSE) -> DELL | I209: ="Model: " -> Model: | J209: =VLOOKUP(K206,INVENTORYDATA,3,FALSE) -> LATITUDE 5330
A210: ="CPU/Speed: " -> CPU/Speed: | B210: =VLOOKUP(E206,INVENTORYDATA,4,FALSE)&" / "&VLOOKUP(E206,INVENTORYDATA,5,FALSE)&"GHz" -> I7-1265U / 4.8GHz | D210: ="Memory: " -> Memory: | E210: =VLOOKUP(E206,INVENTORYDATA,6,FALSE) -> 16G | G210: ="CPU/Speed: " -> CPU/Speed: | H210: =VLOOKUP(K206,INVENTORYDATA,4,FALSE)&" / "&VLOOKUP(K206,INVENTORYDATA,5,FALSE)&"GHz" -> I7-1265U / 4.8GHz | J210: ="Memory: " -> Memory: | K210: =VLOOKUP(K206,INVENTORYDATA,6,FALSE) -> 16G
A212: Key Function | C212: Pass | D212: Fail | E212: Comments | G212: Key Function | I212: Pass | J212: Fail | K212: Comments
A213: Hard Drive Removed | C213: =IF(ISBLANK(VLOOKUP(E206,INVENTORYDATA,13,FALSE)),"X","") ->  | E213: =IF(ISBLANK(VLOOKUP(E206,INVENTORYDATA,13,FALSE)),"",VLOOKUP(E206,INVENTORYDATA,13,FALSE)) -> 512G | G213: Hard Drive Removed | I213: =IF(ISBLANK(VLOOKUP(K206,INVENTORYDATA,13,FALSE)),"X","") ->  | K213: =IF(ISBLANK(VLOOKUP(K206,INVENTORYDATA,13,FALSE)),"",VLOOKUP(K206,INVENTORYDATA,13,FALSE)) -> 512G
A214: Install Memory | C214: X | G214: Install Memory | I214: X
A215: Power ON | C215: X | G215: Power ON | I215: X
A216: Record BIOS info | C216: X | G216: Record BIOS info | I216: X
A217: Check Optical Drive | C217: =IF((VLOOKUP(E206,INVENTORYDATA,7,FALSE))="YES","X","") ->  | D217: =IF((VLOOKUP(E206,INVENTORYDATA,7,FALSE))="NO","X","") -> X | G217: Check Optical Drive | I217: =IF((VLOOKUP(K206,INVENTORYDATA,7,FALSE))="YES","X","") ->  | J217: =IF((VLOOKUP(K206,INVENTORYDATA,7,FALSE))="NO","X","") -> X
A218: Power Off | C218: X | G218: Power Off | I218: X
A219: HDD Serial No. | C219: =IF(ISBLANK(VLOOKUP(E206,INVENTORYDATA,12,FALSE)),"",VLOOKUP(E206,INVENTORYDATA,12,FALSE)) -> s509NF0N320194 | G219: HDD Serial No. | I219: =IF(ISBLANK(VLOOKUP(K206,INVENTORYDATA,12,FALSE)),"",VLOOKUP(K206,INVENTORYDATA,12,FALSE)) -> sn9AN74551100AU2V
A221: Tested for key functions,R2/Ready for Resale | G221: Tested for key functions,R2/Ready for Resale
A222: BIOS Lock | B222: Caddy | C222: Optical | D222: WebCam | E222: Battery | G222: BIOS Lock | H222: Caddy | I222: Optical | J222: WebCam | K222: Battery
C223: =VLOOKUP(E206,INVENTORY!$A$2:$N$144,7,FALSE) -> NO | D223: =VLOOKUP(E206,INVENTORY!$A$2:$N$144,8,FALSE) -> YES | E223: =VLOOKUP(E206,INVENTORY!$A$2:$N$144,9,FALSE) -> YES | I223: =VLOOKUP(K206,INVENTORY!$A$2:$N$144,7,FALSE) -> NO | J223: =VLOOKUP(K206,INVENTORY!$A$2:$N$144,8,FALSE) -> YES | K223: =VLOOKUP(K206,INVENTORY!$A$2:$N$144,9,FALSE) -> YES
A225: CPU Cosmetics Defects: | C225: ="Function Code: "&VLOOKUP(E206,INVENTORY!$A$2:$Q$144,14,FALSE) -> Function Code: F3 | G225: CPU Cosmetics Defects: | I225: ="Function Code: "&VLOOKUP(K206,INVENTORY!$A$2:$Q$144,14,FALSE) -> Function Code: F3
C227: ="Cosmetic Code: "&VLOOKUP(E206,INVENTORY!$A$2:$Q$144,15,FALSE) -> Cosmetic Code: C5 | I227: ="Cosmetic Code: "&VLOOKUP(K206,INVENTORY!$A$2:$Q$144,15,FALSE) -> Cosmetic Code: C5
A229: Casing | B229: Plugs/Ports | G229: Casing | H229: Plugs/Ports
A230: Pass | B230: Pass | G230: Pass | H230: Pass
A231: Fail | B231: Fail | D231: TRRC#:L.T.R. | G231: Fail | H231: Fail | J231: TRRC#:L.T.R.
A233: LAPTOP TESTING RECORD | G233: LAPTOP TESTING RECORD
D235: ITEM # | E235: =E206+2 -> 17 | J235: ITEM # | K235: =K206+2 -> 18
A236: Tester: | B236: RR | C236: Date: | D236: =NOW() -> 2026-01-06T11:13:00.960 | G236: Tester: | H236: RR | I236: Date: | J236: =NOW() -> 2026-01-06T11:13:00.960
A237: Type: | B237: LAPTOP | C237: SN: | D237: =VLOOKUP(E235,INVENTORYDATA,10,FALSE) -> C1PSMX3 | G237: Type: | H237: LAPTOP | I237: SN: | J237: =VLOOKUP(K235,INVENTORYDATA,10,FALSE) -> C6CJFS3
A238: ="Make: " -> Make: | B238: =VLOOKUP(E235,INVENTORYDATA,2,FALSE) -> DELL | C238: ="Model: " -> Model: | D238: =VLOOKUP(E235,INVENTORYDATA,3,FALSE) -> LATITUDE 5330 | G238: ="Make: " -> Make: | H238: =VLOOKUP(K235,INVENTORYDATA,2,FALSE) -> DELL | I238: ="Model: " -> Model: | J238: =VLOOKUP(K235,INVENTORYDATA,3,FALSE) -> LATITUDE 5330
A239: ="CPU/Speed: " -> CPU/Speed: | B239: =VLOOKUP(E235,INVENTORYDATA,4,FALSE)&" / "&VLOOKUP(E235,INVENTORYDATA,5,FALSE)&"GHz" -> I7-1265U / 4.8GHz | D239: ="Memory: " -> Memory: | E239: =VLOOKUP(E235,INVENTORYDATA,6,FALSE) -> 16G | G239: ="CPU/Speed: " -> CPU/Speed: | H239: =VLOOKUP(K235,INVENTORYDATA,4,FALSE)&" / "&VLOOKUP(K235,INVENTORYDATA,5,FALSE)&"GHz" -> I7-1265U / 4.8GHz | J239: ="Memory: " -> Memory: | K239: =VLOOKUP(K235,INVENTORYDATA,6,FALSE) -> 16G
A241: Key Function | C241: Pass | D241: Fail | E241: Comments | G241: Key Function | I241: Pass | J241: Fail | K241: Comments
A242: Hard Drive Removed | C242: =IF(ISBLANK(VLOOKUP(E235,INVENTORYDATA,13,FALSE)),"X","") ->  | E242: =IF(ISBLANK(VLOOKUP(E235,INVENTORYDATA,13,FALSE)),"",VLOOKUP(E235,INVENTORYDATA,13,FALSE)) -> 512G | G242: Hard Drive Removed | I242: =IF(ISBLANK(VLOOKUP(K235,INVENTORYDATA,13,FALSE)),"X","") ->  | K242: =IF(ISBLANK(VLOOKUP(K235,INVENTORYDATA,13,FALSE)),"",VLOOKUP(K235,INVENTORYDATA,13,FALSE)) -> 512G
A243: Install Memory | C243: X | G243: Install Memory | I243: X
A244: Power ON | C244: X | G244: Power ON | I244: X
A245: Record BIOS info | C245: X | G245: Record BIOS info | I245: X
A246: Check Optical Drive | C246: =IF((VLOOKUP(E235,INVENTORYDATA,7,FALSE))="YES","X","") ->  | D246: =IF((VLOOKUP(E235,INVENTORYDATA,7,FALSE))="NO","X","") -> X | G246: Check Optical Drive | I246: =IF((VLOOKUP(K235,INVENTORYDATA,7,FALSE))="YES","X","") ->  | J246: =IF((VLOOKUP(K235,INVENTORYDATA,7,FALSE))="NO","X","") -> X
A247: Power Off | C247: X | G247: Power Off | I247: X
A248: HDD Serial No. | C248: =IF(ISBLANK(VLOOKUP(E235,INVENTORYDATA,12,FALSE)),"",VLOOKUP(E235,INVENTORYDATA,12,FALSE)) -> 50BPC6TYQTML | G248: HDD Serial No. | I248: =IF(ISBLANK(VLOOKUP(K235,INVENTORYDATA,12,FALSE)),"",VLOOKUP(K235,INVENTORYDATA,12,FALSE)) -> sn9AN82631270B124
A250: Tested for key functions,R2/Ready for Resale | G250: Tested for key functions,R2/Ready for Resale
A251: BIOS Lock | B251: Caddy | C251: Optical | D251: WebCam | E251: Battery | G251: BIOS Lock | H251: Caddy | I251: Optical | J251: WebCam | K251: Battery
C252: =VLOOKUP(E235,INVENTORY!$A$2:$N$144,7,FALSE) -> NO | D252: =VLOOKUP(E235,INVENTORY!$A$2:$N$144,8,FALSE) -> YES | E252: =VLOOKUP(E235,INVENTORY!$A$2:$N$144,9,FALSE) -> YES | I252: =VLOOKUP(K235,INVENTORY!$A$2:$N$144,7,FALSE) -> NO | J252: =VLOOKUP(K235,INVENTORY!$A$2:$N$144,8,FALSE) -> YES | K252: =VLOOKUP(K235,INVENTORY!$A$2:$N$144,9,FALSE) -> YES
A254: CPU Cosmetics Defects: | C254: ="Function Code: "&VLOOKUP(E235,INVENTORY!$A$2:$Q$144,14,FALSE) -> Function Code: F3 | G254: CPU Cosmetics Defects: | I254: ="Function Code: "&VLOOKUP(K235,INVENTORY!$A$2:$Q$144,14,FALSE) -> Function Code: F3
C256: ="Cosmetic Code: "&VLOOKUP(E235,INVENTORY!$A$2:$Q$144,15,FALSE) -> Cosmetic Code: C5 | I256: ="Cosmetic Code: "&VLOOKUP(K235,INVENTORY!$A$2:$Q$144,15,FALSE) -> Cosmetic Code: C5
A258: Casing | B258: Plugs/Ports | G258: Casing | H258: Plugs/Ports
A259: Pass | B259: Pass | G259: Pass | H259: Pass
A260: Fail | B260: Fail | D260: TRRC#:L.T.R. | G260: Fail | H260: Fail | J260: TRRC#:L.T.R.
A262: LAPTOP TESTING RECORD | G262: LAPTOP TESTING RECORD
D264: ITEM # | E264: =E235+2 -> 19 | J264: ITEM # | K264: =K235+2 -> 20
... 2000 more rows

Sheet TAGS-BLANK
A1: LAPTOP TESTING RECORD | G1: LAPTOP TESTING RECORD
D3: ITEM # | J3: ITEM #
A4: Tester: | B4: RR | C4: Date: | G4: Tester: | H4: RR | I4: Date:
A5: Type: | C5: SN: | G5: Type: | I5: SN:
A6: ="Make: " -> Make: | C6: ="Model: " -> Model: | G6: ="Make: " -> Make: | I6: ="Model: " -> Model:
A7: ="CPU/Speed: " -> CPU/Speed: | D7: ="Memory: " -> Memory: | G7: ="CPU/Speed: " -> CPU/Speed: | J7: ="Memory: " -> Memory:
A9: Key Function | C9: Pass | D9: Fail | E9: Comments | G9: Key Function | I9: Pass | J9: Fail | K9: Comments
A10: Hard Drive Removed | C10: X | G10: Hard Drive Removed | I10: X
A11: Install Memory | C11: X | G11: Install Memory | I11: X
A12: Power ON | C12: X | G12: Power ON | I12: X
A13: Record BIOS info | C13: X | G13: Record BIOS info | I13: X
A14: Check Optical Drive | C14: X | G14: Check Optical Drive | I14: X
A15: Power Off | C15: X | G15: Power Off | I15: X
A18: Tested for key functions,R2/Ready for Resale | G18: Tested for key functions,R2/Ready for Resale
A19: BIOS Lock | B19: Caddy | C19: Optical | D19: WedCam | E19: Battery | G19: BIOS Lock | H19: Caddy | I19: Optical | J19: WedCam | K19: Battery
A22: CPU Cosmetics Defects: | C22: Function Code: | G22: CPU Cosmetics Defects: | I22: Function Code:
C24: Cosmetic Code: | I24: Cosmetic Code:
A26: Casing | B26: Plugs/Ports | G26: Casing | H26: Plugs/Ports
A27: Pass | B27: Pass | G27: Pass | H27: Pass
A28: Fail | B28: Fail | D28: QP-TRRC-0019-01 | G28: Fail | H28: Fail | J28: QP-TRRC-0019-01
A30: LAPTOP TESTING RECORD | G30: LAPTOP TESTING RECORD
D32: ITEM # | J32: ITEM #
A33: Tester: | B33: RR | C33: Date: | G33: Tester: | H33: RR | I33: Date:
A34: Type: | C34: SN: | G34: Type: | I34: SN:
A35: ="Make: " -> Make: | C35: ="Model: " -> Model: | G35: ="Make: " -> Make: | I35: ="Model: " -> Model:
A36: ="CPU/Speed: " -> CPU/Speed: | D36: ="Memory: " -> Memory: | G36: ="CPU/Speed: " -> CPU/Speed: | J36: ="Memory: " -> Memory:
A38: Key Function | C38: Pass | D38: Fail | E38: Comments | G38: Key Function | I38: Pass | J38: Fail | K38: Comments
A39: Hard Drive Removed | C39: X | G39: Hard Drive Removed | I39: X
A40: Install Memory | C40: X | G40: Install Memory | I40: X
A41: Power ON | C41: X | G41: Power ON | I41: X
A42: Record BIOS info | C42: X | G42: Record BIOS info | I42: X
A43: Check Optical Drive | C43: X | G43: Check Optical Drive | I43: X
A44: Power Off | C44: X | G44: Power Off | I44: X
A47: Tested for key functions,R2/Ready for Resale | G47: Tested for key functions,R2/Ready for Resale
A48: BIOS Lock | B48: Caddy | C48: Optical | D48: WedCam | E48: Battery | G48: BIOS Lock | H48: Caddy | I48: Optical | J48: WedCam | K48: Battery
A51: CPU Cosmetics Defects: | C51: Function Code: | G51: CPU Cosmetics Defects: | I51: Function Code:
C53: Cosmetic Code: | I53: Cosmetic Code:
A55: Casing | B55: Plugs/Ports | G55: Casing | H55: Plugs/Ports
A56: Pass | B56: Pass | G56: Pass | H56: Pass
A57: Fail | B57: Fail | D57: QP-TRRC-0019-01 | G57: Fail | H57: Fail | J57: QP-TRRC-0019-01

Sheet Data-PULLDOWNS
A1: First Tag # | B1: 1
A2: Number of PCs | B2: =MAX(INVENTORY!A2:A373) -> 51
A3: Number of Pages | B3: =ROUNDUP(B2/4,0) -> 13
A5: To print a specific range of tags, enter the first tag number in "First Tag #" and the number of
A6: pages required (# of tags /4) in "Number of Pages"
A7: CAUTION: This will overwrite the automatic calculation!
A11: MAKE | B11: MODEL | C11: TYPE PROC. | D11: MEMORY | E11: OPTICAL | F11: WEBCAM | G11: BATTERY | H11: FUNC. CODE | I11: COSMETIC CODE | J11: PRE-SANITIZATION | K11: NON-DATA | L11: HDD SIZE | M11: TYPE
A12: DELL | B12: LATITUDE | C12: I3- | D12: 0G | E12: YES | F12: YES | G12: YES | H12: F1 | I12: C2 | J12: ENCD | K12: ND | L12: 256G | M12: NVMe M.2 - 22MM - 30MM
A13: HP | B13: ELITEBOOK | C13: I5- | D13: 2G | E13: NO | F13: NO | G13: NO | H13: F2 | I13: C3 | L13: 512G | M13: NVMe M.2 - 22MM - 42MM
A14: LENOVO | B14: PROBOOK | C14: I7- | D14: 4G | E14: N/A | F14: N/A | G14: N/A | H14: F3 | I14: C4 | L14: 1TB | M14: NVMe M.2 - 22MM - 80MM
A15: MSI | B15: PRECISION | C15: X- | D15: 8G | H15: F4 | I15: C5 | L15: 2TB | M15: NVMe M.2 - 22MM - 110MM
B16: XPS | C16: AMD- | D16: 16G | L16: 3TB | M16: SATA M.2 - 22MM - 30MM
B17: ZBOOK | C17: I9- | D17: 32G | L17: 4TB | M17: SATA M.2 - 22MM - 42MM
B18: NOTEBOOK
B19: IDEAPAD
B20: THINKPAD
B21: TOUGHBOOK
B22: CF-
